Cogmind - Beta 10.2 @@@ ROGUE MODE // 2020.11.15 @ 04:48:28 // Winter2019/RPGLIKE Player: jimhatama Result: Destroyed by D-53 Grenadier with Mini Grenade Launcher Performance ------------- Evolutions (1) 500 Regions Visited (3) 600 Robots Destroyed (19) 95 Value Destroyed (450) 450 Prototype IDs (0) 0 Alien Tech Used (0) 0 Bonus (-43) -43 TOTAL SCORE: 1602 Bonus ------- Follower Combat Kills 14 Friendly Fire -57 Cogmind --------- Core Integrity 0/750 Matter 143/300 Energy 4/125 System Corruption 0% Temperature Cool (0) Movement Rolling (90) Location -9/Mines Parts ------- > --- POWER (1) -------- Light Ion Engine > --- PROPULSION (2) --- Wheel Compact Wheel > --- UTILITY (3) ------ Improved Terrain Scanner ECM Suite Shield Generator > --- WEAPON (2) ------- Assault Rifle Rocket Launcher > --- INVENTORY (3) ---- Light Assault Rifle Light Assault Rifle Light Assault Rifle Peak State ------------ > --- POWER ------------ Light Ion Engine > --- PROPULSION ------- Wheel Compact Wheel > --- UTILITY ---------- Improved Terrain Scanner ECM Suite Light Armor Plating > --- WEAPON ----------- Beam Rifle Rocket Launcher > --- INVENTORY -------- Protomatter Assault Rifle Light Assault Rifle [Rating: 11] Favorites ----------- Power Light Ion Engine Engine Light Ion Engine Propulsion Compact Wheel Leg Aluminum Leg Wheel Compact Wheel Utility ECM Suite Device ECM Suite Protection Light Armor Plating Weapon Assault Rifle Energy Gun Beam Rifle Ballistic Gun Assault Rifle Launcher Rocket Launcher Build | -11 -10 -9 -9 ------- Run | Scr Mat Mat Min Slots Evolved 4 | 3 . 1 . Power . | . . . . Propulsion 1 | . . 1 . Utility 2 | 2 . . . Weapon 1 | 1 . . . Parts Attached 23 | 6 2 9 6 Power 2 | 1 . . 1 Engine 2 | 1 . . 1 Core . | . . . . Reactor . | . . . . Propulsion 4 | 3 . 1 . Treads . | . . . . Leg 1 | 1 . . . Wheel 3 | 2 . 1 . Hover . | . . . . Flight . | . . . . Utility 5 | . 2 2 1 Device 3 | . 1 1 1 Storage . | . . . . Processor . | . . . . Hackware . | . . . . Protection 2 | . 1 1 . Artifact . | . . . . Weapon 12 | 2 . 6 4 Energy Gun 1 | . . 1 . Energy Cannon . | . . . . Ballistic Gun 7 | 2 . 3 2 Ballistic Cannon . | . . . . Launcher 4 | . . 2 2 Special Weapon . | . . . . Impact Weapon . | . . . . Slashing Weapon . | . . . . Piercing Weapon . | . . . . Special Melee Weapon . | . . . . Unidentified Prototypes . | . . . . Parts Lost 1 | . . 1 . Power . | . . . . Propulsion . | . . . . Utility 1 | . . 1 . Weapon . | . . . . Highest Loss Streak 1 | . . 1 . Average Slot Usage (%) 85 | . 73 90 90 Engine 12 | . 14 12 12 Wheel 19 | . 14 19 25 Device 18 | . 8 19 28 Protection 8 | . 8 14 . Energy Gun 2 | . . 3 5 Ballistic Gun 21 | . 28 19 17 Naked Turns . | . . . . Heaviest Build 13 | 6 10 13 13 Greatest Support 26 | 16 16 26 26 Greatest Overweight (x) . | . . . . Average Overweight (x) . | . . . . Largest Inventory Capacity 3 | 2 2 3 3 Average Capacity 2 | 1 2 2 3 Most Carried 3 | 2 2 3 3 Average Carried 2 | 1 1 2 2 Final Capacity 3 | 2 2 3 3 Final Carried 3 | 2 2 3 3 Class Distribution -------------------- 100% | Mutant Dominant Class ---------------- Mutant | -10/Materials Mutant | -9/Materials Mutant | -9/Mines Resources | -11 -10 -9 -9 ----------- Run | Scr Mat Mat Min Matter Collected 490 | 260 28 168 34 Remotely . | . . . . Salvage Created 457 | . 64 327 66 Parts 38 | . 7 21 10 Haulers Intercepted . | . . . . Recyclers Shooed . | . . . . Parts Field Recycled . | . . . . Retrieved Matter . | . . . . Parts Self-Destructed . | . . . . Prevented . | . . . . Kills | -11 -10 -9 -9 ------- Run | Scr Mat Mat Min Combat Hostiles Destroyed 16 | . 3 7 6 Guns 12 | . 3 7 2 AOE 4 | . . . 4 Classes Destroyed 7 | . 1 4 2 Worker 1 | . . 1 . Builder 1 | . . 1 . Swarmer 6 | . . . 6 Grunt 8 | . 3 5 . Duelist 1 | . . 1 . Sentry 1 | . . 1 . Zionite 1 | . . . 1 Best Kill Streak 6 | . 2 6 4 Combat Bots Only 4 | . 2 4 4 Max Kills in Single Turn 3 | . 1 2 3 Gunslinging . | . . . . Exploded 2 | . . . 2 Melee . | . . . . Uniques/NPCs Destroyed . | . . . . Combat | -11 -10 -9 -9 -------- Run | Scr Mat Mat Min Damage Taken 1616 | . 112 741 763 Core 1251 | . 74 527 650 Absorbed by Shields 44 | . . . 44 Redirected to Core 845 | . 63 398 384 Core Remaining (%) 100 | 100 100 . . Volleys Fired 55 | . 16 30 9 Largest 2 | . 2 2 2 Hottest 89 | . 40 89 76 Shots Fired 106 | . 32 56 18 Gun 101 | . 32 53 16 Cannon . | . . . . Launcher 5 | . . 3 2 Special . | . . . . Kinetic 79 | . 32 38 9 Thermal 22 | . . 15 7 Explosive 5 | . . 3 2 Electromagnetic . | . . . . Robot Hit Streak 11 | . 4 11 8 Robot Miss Streak 7 | . 7 3 3 Penetration Max . | . . . . Secondary Targets . | . . . . Shots Hit Robots 70 | . 15 42 13 Core Hits 36 | . 8 20 8 Critical Hits 1 | . . 1 . Critical Kills . | . . . . Critical Parts Destroyed 1 | . . 1 . Melee Attacks . | . . . . Impact . | . . . . Slashing . | . . . . Piercing . | . . . . Sneak Attacks . | . . . . Combat Hostiles . | . . . . Follow-up Attacks . | . . . . Damage Inflicted 1374 | . 170 790 414 Guns 799 | . 160 516 123 Cannons . | . . . . Explosions 575 | . 10 274 291 Melee . | . . . . Ramming . | . . . . Kinetic 553 | . 160 313 80 Thermal 246 | . . 203 43 Explosive 575 | . 10 274 291 Electromagnetic . | . . . . Impact . | . . . . Slashing . | . . . . Piercing . | . . . . Highest Corruption . | . . . . Average Corruption . | . . . . Corruption Purged . | . . . . Overload Shots . | . . . . Overflow Damage 2 | . . . 2 Projectiles . | . . . . Explosions 2 | . . . 2 Melee . | . . . . Knockbacks . | . . . . Impact . | . . . . Kinetic . | . . . . Secondary . | . . . . Self-Inflicted Damage 154 | . 55 3 96 Shots 5 | . 2 1 2 Rammed . | . . . . Targets Rammed . | . . . . Kicked . | . . . . Crushed . | . . . . Highest Temperature 280 | . 18 280 75 Average Temperature 91 | . 6 127 32 Received Heat Transfer 323 | . 30 273 20 Effects 1 | . . 1 . Energy Bleed 1 | . . 1 . Siege Activations . | . . . . Robots Corrupted . | . . . . Combat Hostiles . | . . . . Parts Fried . | . . . . Impact Corruptions . | . . . . Robots Melted . | . . . . Combat Hostiles . | . . . . Parts Melted . | . . . . Heat Transferred 629 | . . 518 111 Parts Sabotaged . | . . . . Parts Stolen . | . . . . Parts Stripped . | . . . . Power Chain Reactions . | . . . . Missiles Intercepted . | . . . . Alert | -11 -10 -9 -9 ------- Run | Scr Mat Mat Min Peak Influence 308 | . 115 283 308 Initial 106 | . . 48 106 Average 128 | . 56 149 206 Maximum Alert Level 1 | . . 1 1 Low Security (%) 83 | 100 100 81 64 Level 1 16 | . . 18 35 Level 2 . | . . . . Level 3 . | . . . . Level 4 . | . . . . Level 5 . | . . . . High Security . | . . . . Max Security . | . . . . Squads Dispatched 5 | . 2 3 . Investigation . | . . . . Extermination . | . . . . Reinforcement 5 | . 2 3 . Assault . | . . . . Garrison . | . . . . Intercept . | . . . . Construction Impeded . | . . . . Haulers Reinforced . | . . . . Stealth | -11 -10 -9 -9 --------- Run | Scr Mat Mat Min Distress Signals 4 | . 1 3 . Communications Jammed . | . . . . Distress Signals . | . . . . Times Spotted 54 | . 7 25 22 Peak Tracking Total 17 | . 3 17 15 Tactical Retreats 1 | . . 1 . Traps | -11 -10 -9 -9 ------- Run | Scr Mat Mat Min Traps Triggered . | . . . . Indirectly . | . . . . Trap Hack Attempts . | . . . . Triggered . | . . . . Disarmed . | . . . . Reprogrammed 3 | . 3 . . Reused . | . . . . Traps Extracted . | . . . . Installed . | . . . . Triggered . | . . . . Machines | -11 -10 -9 -9 ---------- Run | Scr Mat Mat Min Machines Disabled 2 | . 2 . . Max in Single Turn 2 | . 2 . . Machines Sabotaged . | . . . . Garrisons Compromised . | . . . . Overloaded Fab Kills . | . . . . Fab Network Shutdowns . | . . . . Hacking | -11 -10 -9 -9 --------- Run | Scr Mat Mat Min Machines Accessed 4 | . 2 2 . Terminals 3 | . 1 2 . Fabricators . | . . . . Repair Stations . | . . . . Recycling Units 1 | . 1 . . Scanalyzers . | . . . . Garrison Access . | . . . . Total Hacks 7 | . 4 3 . Successful 5 | . 3 2 . Failed 2 | . 1 1 . Catastrophic . | . . . . Database Lockouts . | . . . . Manual . | . . . . Terminals 5 | . 2 3 . Fabricators . | . . . . Repair Stations . | . . . . Recycling Units 2 | . 2 . . Scanalyzers . | . . . . Garrison Access . | . . . . Terminal Hacks 4 | . 2 2 . Alert Level 1 | . . 1 . Locate Traps 1 | . 1 . . Reprogram Traps 1 | . 1 . . Patrol Status 1 | . . 1 . Fabricator Hacks . | . . . . Repair Station Hacks . | . . . . Recycling Unit Hacks 1 | . 1 . . Report Inventory 1 | . 1 . . Scanalyzer . | . . . . Garrison Access Hacks . | . . . . Unauthorized Hacks . | . . . . Terminals . | . . . . Fabricators . | . . . . Repair Stations . | . . . . Recycling Units . | . . . . Scanalyzers . | . . . . Garrison Access . | . . . . Data Cores Recovered . | . . . . Used . | . . . . Hacking Detections 3 | . 2 1 . Full Trace Events . | . . . . Feedback Events . | . . . . Feedback Blocked . | . . . . Robot Schematics Acquired . | . . . . Robots Built . | . . . . Matter . | . . . . Time . | . . . . Total Robot Build Rating . | . . . . Part Schematics Acquired . | . . . . Parts Built . | . . . . Matter . | . . . . Time . | . . . . Total Part Build Rating . | . . . . Parts Repaired . | . . . . Time . | . . . . Parts Recycled . | . . . . Recycled Matter . | . . . . Retrieved Matter . | . . . . Retrieved Components . | . . . . Parts Scanalyzed . | . . . . Part Schematics Acquired . | . . . . Parts Damaged . | . . . . Bothacking | -11 -10 -9 -9 ------------ Run | Scr Mat Mat Min Used RIF Installer . | . . . . Robots Hacked . | . . . . Non-combat . | . . . . Combat . | . . . . Robot Hacks Applied . | . . . . Relay Couplers Released . | . . . . Robots Rewired . | . . . . Allies Hacked . | . . . . Hacks Repelled . | . . . . Allies | -11 -10 -9 -9 -------- Run | Scr Mat Mat Min Total Allies 2 | . . . 2 Largest Group 2 | . . . 2 Highest-Rated Group 48 | . . . 48 Highest-Rated Ally 31 | . . . 31 Total Orders . | . . . . Ally Attacks 8 | . . . 8 Total Damage 81 | . . . 81 Kills 2 | . . . 2 Allies Corrupted . | . . . . Allies Melted . | . . . . Intel | -11 -10 -9 -9 ------- Run | Scr Mat Mat Min Robot Analysis Total . | . . . . Derelict Logs Recovered . | . . . . Drone Launches . | . . . . Drone Recoveries . | . . . . Exploration | -11 -10 -9 -9 ------------- Run | Scr Mat Mat Min Turns Passed 694 | 56 184 269 185 Spaces Moved 485 | 46 128 168 143 Core 3 | 3 . . . Treads . | . . . . Legs 1 | 1 . . . Wheels 481 | 42 128 168 143 Hover . | . . . . Flight . | . . . . Fastest Speed 50 | 50 100 90 90 Average Speed 94 | 97 100 94 90 Slowest Speed 120 | 120 100 100 90 Overloaded Moves . | . . . . Propulsion Burnouts . | . . . . Robots Hopped . | . . . . Cave-ins Triggered . | . . . . Exploration Rate (%) 21 | 3 30 26 28 Regions Visited 3 Branch Regions 1 Pre-discovered Areas . | . . . . Known Exits Taken . | . . . . Unknown Exits Taken 3 | 1 1 1 . Scrap Searched . | . . . . Spaces Dug . | . . . . Terrain Destroyed 87 | . 41 16 30 Melee . | . . . . Projectile . | . . . . AOE 87 | . 41 16 30 Terrain Rammed . | . . . . Walls Destroyed . | . . . . Machines Disabled . | . . . . Actions | -11 -10 -9 -9 --------- Run | Scr Mat Mat Min Total 614 | 55 154 224 181 Wait 8 | . 2 4 2 Move 482 | 45 127 167 143 Hop . | . . . . Pick Up 10 | 2 1 6 1 Fast Attach 13 | 6 2 3 2 Attach 2 | . . 2 . Detach . | . . . . Swap 8 | . . 4 4 Drop 10 | 2 1 4 3 Fire 55 | . 16 30 9 Melee . | . . . . Ram . | . . . . Kick . | . . . . Crush . | . . . . Escape Stasis . | . . . . Rewire . | . . . . Trap . | . . . . Miscellaneous 26 | . 5 4 17 Route ------- -11/Scrapyard -10/Materials -9/Materials -9/Mines History --------- Turn | Location | Event 2 | -11/Scrapyard | Upgraded with Utility slot (x2) 2 | -11/Scrapyard | Upgraded with Weapon slot (x1) 27 | -11/Scrapyard | Discovered new exit (range 16) 57 | -11/Scrapyard | Entered Materials 213 | -10/Materials | Discovered new exit (range 13) 241 | -10/Materials | Entered another Materials area 243 | -9/Materials | Reached level 2 243 | -9/Materials | Upgraded with Propulsion slot (x1) 324 | -9/Materials | Build established: Mutant 484 | -9/Materials | Discovered new exit (range 10) 505 | -9/Materials | Core integrity fell below 50% 510 | -9/Materials | Entered Mines 512 | -9/Mines | Reached level 3 665 | -9/Mines | Assembled infested the area 692 | -9/Mines | Core integrity fell below 20% 695 | -9/Mines | Destroyed by D-53 Grenadier with Mini Grenade Launcher Last Messages --------------- 00670_ C-30 ARC bursts open, deploying its payload. 00670_ D-53 Grenadier unfolds itself. 00670_ K-01 Serf destroyed. 00673_ The unstable cave ceiling collapses. 00685_ as-33950 destroyed. 00686_ The unstable cave ceiling collapses. 00686_ as-40768 destroyed. 00686_ as-44106 destroyed. 00686_ as-72479 destroyed. 00687_ as-22100 destroyed. 00687_ as-73318 destroyed. 00687_ as-59071 destroyed. 00687_ as-60287 destroyed. 00688_ K-01 Serf collects debris. 00691_ as-30320 destroyed. 00691_ as-20612 destroyed. 00692_ K-01 Serf collects debris. 00693_ The unstable cave ceiling collapses. 00693_ K-01 Serf destroyed. 00694_ The unstable cave ceiling collapses. Map ----- +----------------------------------------------------+ | ??????????????# """ """ #??## ##??# ??? ??????? | | ??????????????# """ """ #??# #?## ""????????? | | ??????#???????# """ """ #??# ##?# """ ??????? | | ??????#???????# [= %####! ### ??????? | | ??????????????#### *## **= * #? """?#?????? | | ?????????????#???# ## = = = #? """?#?????? | | ?????????????????# ## ##### #?? ""????????? | | ?????????????????# #???# #?? ???#???? | | ?????????????????#######???# #?## ###??????? | | ???????#?????????????????#?## ##??# ######?#?? | | ????????????????????????#?#?### #####?# #??? | | ?????????????????????????#????# ####### ##### #??? | | ??????????????????##?##????#?## #?????#??? | | ????????????????#?????????????####### ###???? ##?? | | ??????????????#???????##??????####### ##????# ##? | | ??????????????????#??????#??### # #??### #? | | ???????????????????????????## ###?## #? | | ???????????????????????????#### ##### #? | | ?????????????????????#????## #?? | | ????????????????#####????#?# # # ##### ###?? | | ????????????#??## #???#### # #??## #???? | | ???????????????# ##??# ### ## #???## ?# | | ??????????????## #?## ###?######????# | | ??????????????# ### #???##???????## | | ?????????###### #??????#???##?# # | | ????????## # @ #??????????????# # | | ???????## #????#??????????## ## | | ???????# ###??????????????###? | | ??????# a #???????????????#???? | | ??????# ##?????????????#?????? | | ??????# k dd = ######??????????????? | | ?????# ! #??????????????? | | ?????## ##### #??????????????? | | ??????# # ## ## ####?????????????????? | | ??????# % # #? ???????????????? | | ??????# ?##### #?????????????????? | | ??????### ###??????# #%## #?????????????????? | | ????????# #????????# ## #? ????????????????? | | ????????# ?#???????## ##? #??###???????????????? | | ????????# ??????????####?? #????????????????????? | | ????????# ????????????#??? #????????????????????? | | ????????# ?????????????????#????#???????????????? | | ????????? ??????????????????????????????????????? | | ????????? ??????????????????????????????????????? | | ?????????" ??????????????????????????????????????? | | ?????????????????????????????????????????????????? | | ?????????????????????????????????????????????????? | | ?????????????????????????????????????????????????? | | ?????????????????????????????????????????????????? | | ?????????????????????????????????????????????????? | +----------------------------------------------------+ Best States ------------- Heat Dissipation 25 Energy Generation 10 Energy Capacity 125 Matter Stores 300 Matter Capacity 300 Sight Range 16 Terrain Scan Range 16 Terrain Scan Density 10 ECM Strength 1 Armor Coverage 300 Evasion (%) 42 Item Schematics ----------------- None Robot Schematics ------------------ None Fabricated ------------ Nothing Alien Tech Used ----------------- None Achievements -------------- None Challenges ------------ None RPGLIKE | -11 -10 -9 -9 --------- Run | Scr Mat Mat Min Levels Raised 2 | . . 1 1 XP Earned 7441 | 3000 500 2475 1466 XP Spent 4305 | 2575 . 1730 . Upgrades 11 | 6 . 5 . Propulsion Slot 1 | . . 1 . Utility Slot 2 | 2 . . . Weapon Slot 1 | 1 . . . Core Integrity 3 | 1 . 2 . Inventory Capacity 3 | 2 . 1 . Ranged Accuracy 1 | . . 1 . Protomatter Created 135 | . 86 49 . Integrity Restored 520 | . 77 89 354 Core 493 | . 74 65 354 Parts 27 | . 3 24 . Protomatter Decayed 30 | . 30 . . Game ------ Seed HackingMatterCloak Manual? 0 Play Time 00:16:44 Cumulative 81.0 hours Start 2020.11.15 @ 04:34:53 End 2020.11.15 @ 04:48:28 Sessions 1 Manual Loads 0 Difficulty Rogue Special Mode Winter2019/RPGLIKE Game No. 103 Rogue 101 Adventurer 1 Explorer 1 Win Type - Total 0 Types 0/0/0/0/0/0/0/0/0 Lore% 35 Gallery% 52 Achievement% 38 Wizard Run 0 Options --------- ASCII 0 Keyboard 0 Movement Mouse Keybinds 0 Fullscreen 2 Font 18/X11 Map View 76x50 Tactical HUD 1 Map Filters NONE Filters NONE Steam 1 RUN: 929e07a3-0a52-4c54-954f-a09918f792fa